Cogmind - Beta 13 @@@ ROGUE MODE // 2024.07.25 @ 08:07:16 Player: Eggywontgrow Result: Destroyed by YI-UF0 with YI-UF0's Doublenader Performance ------------- Evolutions (0) 0 Regions Visited (2) 400 Robots Destroyed (23) 115 Value Destroyed (516) 516 Prototype IDs (2) 40 Alien Tech Used (0) 0 Bonus (0) 0 TOTAL SCORE: 1071 Bonus ------- None Cogmind --------- Core Integrity 0/250 Matter 255/300 Energy 100/100 System Corruption 0% Temperature Cool (0) Movement Treading (160) Location -10/Mines Parts ------- > --- POWER (1) -------- (None) > --- PROPULSION (2) --- Light Treads > --- UTILITY (2) ------ Medium Storage Unit Light Armor Plating > --- WEAPON (2) ------- Particle Gun > --- INVENTORY (10) --- Visual Processing Unit Seismic Detector Targeting Computer Light Armor Plating Hacking Suite Particle Gun Peak State ------------ > --- POWER ------------ Ion Engine > --- PROPULSION ------- Light Treads Light Treads > --- UTILITY ---------- Medium Storage Unit Signal Interpreter > --- WEAPON ----------- Particle Gun Particle Gun > --- INVENTORY -------- Light Treads Visual Processing Unit Seismic Detector Targeting Computer Light Armor Plating Light Armor Plating Hacking Suite Assault Rifle Light Assault Rifle Grenade Launcher [Rating: 10] Favorites ----------- Power Ion Engine Engine Ion Engine Propulsion Light Treads Treads Light Treads Utility Seismic Detector Device Seismic Detector Storage Small Storage Unit Processor Signal Interpreter Protection Light Armor Plating Weapon Assault Rifle Energy Gun Particle Gun Ballistic Gun Assault Rifle Launcher Grenade Launcher Special Melee Weapon Datajack Build | -11 -10 -10 ------- Run | Yrd Mat Min Slots Evolved . | . . . Power . | . . . Propulsion . | . . . Utility . | . . . Weapon . | . . . Parts Attached 21 | 7 8 6 Power 4 | 1 2 1 Engine 4 | 1 2 1 Core . | . . . Reactor . | . . . Propulsion 4 | 2 1 1 Treads 4 | 2 1 1 Leg . | . . . Wheel . | . . . Hover . | . . . Flight . | . . . Utility 5 | 2 2 1 Device 1 | 1 . . Storage 2 | 1 1 . Processor 1 | . 1 . Hackware . | . . . Protection 1 | . . 1 Artifact . | . . . Weapon 8 | 2 3 3 Energy Gun 4 | . 2 2 Energy Cannon . | . . . Ballistic Gun 2 | 2 . . Ballistic Cannon . | . . . Launcher 1 | . . 1 Special Weapon . | . . . Impact Weapon . | . . . Slashing Weapon . | . . . Piercing Weapon . | . . . Special Melee Weapon 1 | . 1 . Unidentified Prototypes . | . . . Parts Lost 6 | . 1 5 Power 2 | . 1 1 Propulsion 2 | . . 2 Utility . | . . . Weapon 2 | . . 2 Highest Loss Streak 3 | . 1 3 To Critical Strikes . | . . . Average Slot Usage (%) 98 | . 98 95 Engine 12 | . 13 11 Treads 27 | . 27 26 Device 9 | . 11 . Storage 14 | . 14 14 Processor 4 | . 2 12 Energy Gun 14 | . 13 19 Ballistic Gun 12 | . 14 6 Naked Turns . | . . . Heaviest Build 21 | 14 21 21 Greatest Support 40 | 40 40 40 Greatest Overweight (x) . | . . . Average Overweight (x) . | . . . Largest Inventory Capacity 10 | 8 10 10 Average Capacity 8 | 7 8 10 Most Carried 10 | 7 10 10 Average Carried 7 | 2 7 9 Final Capacity 10 | 8 10 10 Final Carried 10 | 4 10 6 Class Distribution -------------------- 60% | Mutant 39% | Scavenger-Mutant Dominant Class ---------------- Mutant | -10/Materials Scavenger-Mutant | -10/Mines Resources | -11 -10 -10 ----------- Run | Yrd Mat Min Matter Collected 572 | 258 240 74 Remotely . | . . . Salvage Created 736 | 61 517 158 Parts 57 | 10 39 8 Haulers Intercepted 1 | . 1 . Recyclers Shooed 3 | 1 2 . Parts Field Recycled . | . . . Retrieved Matter . | . . . Parts Self-Destructed . | . . . Prevented . | . . . Kills | -11 -10 -10 ------- Run | Yrd Mat Min Combat Hostiles Destroyed 13 | . 9 4 Guns 13 | . 9 4 Classes Destroyed 8 | 1 7 . Worker 1 | . 1 . Tunneler 3 | 3 . . Hauler 1 | . 1 . Recycler 1 | . 1 . Operator 1 | . 1 . Watcher 3 | . 3 . Swarmer 3 | . 3 . Grunt 10 | . 6 4 Best Kill Streak 5 | 2 5 2 Combat Bots Only 4 | . 4 2 Max Kills in Single Turn 1 | 1 1 1 Gunslinging . | . . . Exploded . | . . . Melee . | . . . Uniques/NPCs Destroyed . | . . . Combat | -11 -10 -10 -------- Run | Yrd Mat Min Hostile Shots Fired 82 | . 43 39 Missed 16 | . 8 8 Damage Taken 1268 | . 389 879 Core 267 | . 43 224 Absorbed by Shields . | . . . Regen/Repaired (Parts) 121 | . 121 . Core Remaining (%) 100 | 100 . . Volleys Fired 74 | 8 49 17 Largest 2 | 2 2 2 Hottest 130 | 40 85 130 Shots Fired 143 | 16 97 30 Gun 139 | 16 97 26 Cannon . | . . . Launcher 4 | . . 4 Special . | . . . Kinetic 70 | 16 48 6 Thermal 69 | . 49 20 Explosive 4 | . . 4 Electromagnetic . | . . . Robot Hit Streak 9 | 8 9 5 Robot Miss Streak 9 | 1 9 5 Penetration Max . | . . . Secondary Targets . | . . . Shots Hit Robots 77 | 12 53 12 Core Hits 37 | 4 24 9 Critical Kills . | . . . Critical Parts Destroyed . | . . . Critical Strikes 1 | . . 1 Burn 1 | . . 1 Melee Attacks 4 | . 4 . Impact . | . . . Slashing . | . . . Piercing . | . . . Sneak Attacks 2 | . 2 . Combat Hostiles . | . . . Follow-up Attacks . | . . . Damage Inflicted 1020 | 132 651 237 Guns 968 | 132 647 189 Cannons . | . . . Explosions 48 | . . 48 Melee . | . . . Ramming 4 | . 4 . Kinetic 510 | 132 339 39 Thermal 458 | . 308 150 Explosive 48 | . . 48 Electromagnetic . | . . . Impact . | . . . Slashing . | . . . Piercing . | . . . Highest Corruption . | . . . Average Corruption . | . . . Corruption Purged . | . . . Corruption Blocked . | . . . Overload Shots . | . . . Overflow Damage . | . . . Projectiles . | . . . Explosions . | . . . Melee . | . . . Knockbacks . | . . . Impact . | . . . Kinetic . | . . . Secondary . | . . . Self-Inflicted Damage . | . . . Shots . | . . . Rammed 1 | . 1 . Targets Rammed 2 | . 2 . Kicked . | . . . Crushed 1 | . 1 . Highest Temperature 274 | . 96 274 Average Temperature 66 | . 36 117 Received Heat Transfer 291 | . 174 117 Effects 1 | . . 1 Interference 1 | . . 1 Siege Activations . | . . . Robots Corrupted . | . . . Combat Hostiles . | . . . Parts Fried . | . . . Impact Corruptions . | . . . Robots Melted . | . . . Combat Hostiles . | . . . Parts Melted 3 | . 2 1 Heat Transferred 1102 | . 695 407 Parts Sabotaged . | . . . Parts Stolen . | . . . Parts Stripped . | . . . Power Chain Reactions . | . . . Alert | -11 -10 -10 ------- Run | Yrd Mat Min Peak Influence 211 | 15 211 103 Initial 9 | . 9 3 Average 45 | 5 50 43 Maximum Alert Level 1 | . 1 . Low Security (%) 95 | 100 94 100 Level 1 4 | . 5 . Level 2 . | . . . Level 3 . | . . . Level 4 . | . . . Level 5 . | . . . High Security . | . . . Max Security . | . . . Squads Dispatched 1 | . 1 . Investigation 1 | . 1 . Extermination . | . . . Reinforcement . | . . . Assault . | . . . Garrison . | . . . Intercept . | . . . Searches Triggered . | . . . Construction Impeded . | . . . Haulers Reinforced . | . . . Active Scanning Responses . | . . . Cargo Convoy Interrupts . | . . . Stealth | -11 -10 -10 --------- Run | Yrd Mat Min Distress Signals 3 | . 3 . Communications Jammed . | . . . Distress Signals . | . . . Times Spotted 29 | . 23 6 Peak Tracking Total 5 | . 5 2 Tactical Retreats 2 | . 1 1 Traps | -11 -10 -10 ------- Run | Yrd Mat Min Traps Triggered . | . . . Indirectly . | . . . Trap Hack Attempts . | . . . Triggered . | . . . Disarmed . | . . . Reprogrammed . | . . . Reused . | . . . Traps Extracted . | . . . Installed . | . . . Triggered . | . . . Machines | -11 -10 -10 ---------- Run | Yrd Mat Min Machines Disabled . | . . . Max in Single Turn . | . . . Machines Repaired . | . . . Machines Dismantled . | . . . Machines Sabotaged . | . . . Overloaded Fab Kills . | . . . Hacking | -11 -10 -10 --------- Run | Yrd Mat Min Machines Accessed 7 | . 7 . Terminals 5 | . 5 . Fabricators . | . . . Repair Stations 1 | . 1 . Recycling Units 1 | . 1 . Scanalyzers . | . . . Garrison Access . | . . . Total Hacks 18 | . 18 . Successful 11 | . 11 . Failed 7 | . 7 . Catastrophic 1 | . 1 . Database Lockouts . | . . . Manual 12 | . 12 . Terminals 11 | . 11 . Fabricators . | . . . Repair Stations 3 | . 3 . Recycling Units 4 | . 4 . Scanalyzers . | . . . Garrison Access . | . . . Terminal Hacks 4 | . 4 . Robot Analysis 2 | . 2 . Prototype ID Bank 1 | . 1 . Hauler Manifests 1 | . 1 . Fabricator Hacks . | . . . Repair Station Hacks 3 | . 3 . Scan Component 2 | . 2 . Repair 1 | . 1 . Recycling Unit Hacks 4 | . 4 . Process 1 | . 1 . Report Inventory 2 | . 2 . Retrieve Matter 1 | . 1 . Scanalyzer . | . . . Garrison Access Hacks . | . . . Unauthorized Hacks . | . . . Terminals . | . . . Fabricators . | . . . Repair Stations . | . . . Recycling Units . | . . . Scanalyzers . | . . . Garrison Access . | . . . Data Cores Recovered 1 | . 1 . Used 1 | . 1 . Hacking Detections 6 | . 6 . Full Trace Events 3 | . 3 . Feedback Events . | . . . Feedback Blocked . | . . . Robot Schematics Acquired . | . . . Robots Built . | . . . Authchips . | . . . Time . | . . . Total Robot Build Rating . | . . . Part Schematics Acquired . | . . . Parts Built . | . . . Authchips . | . . . Time . | . . . Total Part Build Rating . | . . . Parts Repaired 1 | . 1 . Time 26 | . 26 . Parts Recycled . | . . . Recycled Matter 148 | . 148 . Retrieved Matter 190 | . 190 . Retrieved Components . | . . . Parts Scanalyzed . | . . . Part Schematics Acquired . | . . . Parts Damaged . | . . . Bothacking | -11 -10 -10 ------------ Run | Yrd Mat Min Used RIF Installer . | . . . Robots Hacked 3 | . 3 . Non-combat 3 | . 3 . Combat . | . . . Robot Hacks Applied 3 | . 3 . parse_system 1 | . 1 . no_distress 2 | . 2 . Relay Couplers Released . | . . . Fabnet Peak Effective % . | . . . Robots Rewired . | . . . Allies Hacked . | . . . Hacks Repelled . | . . . Allies | -11 -10 -10 -------- Run | Yrd Mat Min Total Allies . | . . . Largest Group . | . . . Highest-Rated Group . | . . . Highest-Rated Ally . | . . . Total Orders . | . . . Ally Attacks . | . . . Total Damage . | . . . Kills . | . . . Allies Corrupted . | . . . Allies Melted . | . . . Intel | -11 -10 -10 ------- Run | Yrd Mat Min Robot Analysis Total 2 | . 2 . Derelict Logs Recovered . | . . . Drone Launches . | . . . Drone Recoveries . | . . . Exploration | -11 -10 -10 ------------- Run | Yrd Mat Min Turns Passed 2030 | 178 1483 369 Spaces Moved 1064 | 89 802 173 Core 4 | 4 . . Treads 1060 | 85 802 173 Legs . | . . . Wheels . | . . . Hover . | . . . Flight . | . . . Fastest Speed 50 | 50 160 160 Average Speed 159 | 155 160 160 Slowest Speed 160 | 160 160 160 Overloaded Moves . | . . . Propulsion Burnouts . | . . . Robots Hopped . | . . . Cave-ins Triggered . | . . . Exploration Rate (%) 41 | 5 87 33 Regions Visited 2 Branch Regions 1 Pre-discovered Areas . | . . . Known Exits Taken 1 | . 1 . Unknown Exits Taken 1 | 1 . . Scrap Searched . | . . . Spaces Dug . | . . . Terrain Destroyed 6 | . . 6 Melee . | . . . Projectile . | . . . AOE 6 | . . 6 Terrain Rammed . | . . . Walls Destroyed . | . . . Machines Disabled . | . . . Actions | -11 -10 -10 --------- Run | Yrd Mat Min Total 1254 | 113 905 236 Wait 48 | . 14 34 Move 1062 | 88 801 173 Hop . | . . . Pick Up 25 | 8 15 2 Fast Attach 8 | 5 3 . Attach 4 | 2 . 2 Detach . | . . . Swap 9 | . 5 4 Drop 18 | 2 12 4 Fire 74 | 8 49 17 Melee 4 | . 4 . Ram . | . . . Kick . | . . . Crush 2 | . 2 . Escape Stasis . | . . . Rewire . | . . . Trap . | . . . Miscellaneous . | . . . Route ------- -11/Scrapyard -10/Materials (discovered 4 exits: *Mat x2 / *Min x2) -10/Mines History --------- Turn | Location | Event 12 | -11/Scrapyard | Discovered new exit (range 15) 179 | -11/Scrapyard | Entered Materials 303 | -10/Materials | Build established: Mutant 607 | -10/Materials | Discovered new exit (range 12) 764 | -10/Materials | Discovered new exit (range 8) 1248 | -10/Materials | Discovered new exit (range 14) 1489 | -10/Materials | Build established: Scavenger-Mutant 1513 | -10/Materials | Identified exit to Mines 1578 | -10/Materials | Discovered new exit (range 3) 1581 | -10/Materials | Identified exit to Materials 1593 | -10/Materials | Repaired Lgt. Treads 1662 | -10/Materials | Entered Mines 1977 | -10/Mines | Core integrity fell below 50% 2009 | -10/Mines | Lost 3 parts (1p1n1w) 2022 | -10/Mines | Core integrity fell below 20% 2031 | -10/Mines | Destroyed by YI-UF0 with YI-UF0's Doublenader Last Messages --------------- 01915_ Dropped Assault Rifle. 01916_ Dropped Lgt. Assault Rifle. 01918_ Acquired Particle Gun. 01923_ Acquired 19 matter. 01973_ The unstable cave ceiling collapses. 01974_ Lgt. Treads destroyed. 01976_ Destroyed Shock Absorption System. 01976_ Particle Gun destroyed. 01978_ Ion Engine destroyed. 01979_ Overheating: System interference. 01979_ Signal Interpreter temporarily disabled. 01979_ The unstable cave ceiling collapses. 01998_ Discarded Signal Interpreter. 02006_ Acquired 25 matter. 02010_ The unstable cave ceiling collapses. 02023_ Lgt. Treads destroyed. 02026_ The unstable cave ceiling collapses. 02028_ YI-UF0 mumbles something. 02028_ The unstable cave ceiling collapses. 02031_ Grenade Launcher destroyed. Map ----- +----------------------------------------------------+ | ????????????????# #??# #????????? | | ??????????????????# ##?# ############?? | | ???????????????????# ### # #?? | | ????????????????????# ## # #?? | | ???????????????????## """ """ #?? | | ????????????????#### """ """ #?? | | ???????????????## ##### """ """ #?? | | ??????????????## """ ##???# #?? | | ??????????????# """ #????# #?? | | ?????????????## """ ##????############?? | | ?????????????# #??????????????????? | | ?????????????# #??????????????????? | | ?????????????## #?????????????????? | | ??????????????## ?????????????????? | | ???????????????# ##???????????????? | | ???????????????# ???????????????? | | ???????????????# g ???????????????? | | ???????????????# ####???????????? | | ??????????????## = # ##??????????? | | ???????????#### #??????????? | | ??????? #??????????? | | ?????? ##?????????? | | ??????? ###### #?????????? | | ???????????????? # #???????? | | ???????????????????# #######??? | | ???????????????????## @ ##?? | | ???????????????????# # #?? | | ???????????????????# #?? | | ???????????????????## [ #? | | ???????????????????## [ # #? | | ???????????????????# [ # ##### ##? | | ???????????????????##=## #???###?? | | ???????????????????# ##### ##???????? | | ???????????????????# ##########???????? | | ???????????????????## ##????????????? | | ????????????????????## ##???????????? | | ?????????????????????## ###???####??? | | ??????????????????????## ##?# #??? | | ???????????????????????## ## #??? | | ????????????????????????## #???? | | ?????????????????????????### ##???? | | ???????????????????????????## ##????? | | ????????????????????????????# ##?????? | | ????????????????????????????# ##??????? | | ????????????????????????????# #???????? | | ????????????????????????????## ##???????? | | ?????????????????????????????####????????? | | ?????????????????????????????????????????? | | ?????????????????????????????????????????? | | ?????????????????????????????????????????? | +----------------------------------------------------+ Best States ------------- Heat Dissipation 25 Energy Generation 10 Energy Capacity 250 Matter Stores 300 Matter Capacity 300 Sight Range 16 Terrain Scan Density 10 Armor Coverage 150 Evasion (%) 40 Recoil Reduction 2 Item Schematics ----------------- None Robot Schematics ------------------ None Fabricated ------------ Nothing Alien Tech Used ----------------- None Achievements -------------- Shopping List Challenges ------------ None Game ------ Seed SlugRainbowSabre Manual? 0 Play Time 00:26:12 Cumulative 13.1 hours Start 2024.07.25 @ 07:34:07 End 2024.07.25 @ 08:07:16 Sessions 1 Manual Loads 0 Difficulty Rogue Special Mode None Game No. 19 Rogue 19 Adventurer 0 Explorer 0 Win Type - Total 0 Types 0/0/0/0/0/0/0/0/0 Lore% 11 Gallery% 19 Achievement% 18 Wizard Run 0 Options --------- Layout 0 ASCII 0 Keyboard 0 Movement Numpad Keybinds 1 Fullscreen 2 Font 24/Smallcaps Map View 76x50 Zoom Use 51% Tactical HUD 1 Map Filters NONE Filters NONE Steam 1 RUN: d5e17a07-6cbf-4810-b080-315cc5b18254